fUST/lending_fUST_20250830
["ID","MTS","AMOUNT","RATE_DAILY","PERIOD"]
[382174997,1756532450794,500.0,0.00023931,2]
[382174998,1756532450828,959.65476722,0.00023931,2]
[382174999,1756532450869,500.0,0.00023931,2]
[382175000,1756532450907,959.65476722,0.00023931,2]
[382175001,1756532450964,500.0,0.00023931,2]
[382175002,1756532450997,959.65476722,0.00023931,2]
[382175003,1756532451032,500.0,0.00023931,2]
[382175004,1756532451064,959.65476722,0.00023931,2]
[382175005,1756532451102,959.65476722,0.00023931,2]
[382175006,1756532451139,959.65476722,0.00023931,2]
[382175007,1756532451186,917.21728043,0.00023931,2]
[382175008,1756532451215,42.43748679,0.00023931,2]
[382175009,1756532451257,959.65476722,0.00023931,2]
[382175010,1756532451298,959.65476722,0.00023931,2]
[382175011,1756532451332,959.65476722,0.00023931,2]
[382175012,1756532451372,959.65476722,0.00023931,2]
[382175013,1756532451407,959.65476722,0.00023931,2]
[382175014,1756532451441,959.65476722,0.00023931,2]
[382175015,1756532451597,959.65476722,0.00023931,2]
[382175016,1756532451633,959.65476722,0.00023931,2]
[382175017,1756532451668,959.65476722,0.00023931,2]
[382175018,1756532451714,959.65476722,0.00023931,2]
[382175019,1756532451768,361.02484101,0.00023931,2]
[382175020,1756532451799,598.62992621,0.00023931,2]
[382175021,1756532451835,959.65476722,0.00023931,2]
[382175022,1756532451871,959.65476722,0.00023931,2]
[382175023,1756532451914,959.65476722,0.00023931,2]
[382175024,1756532451960,959.65476722,0.00023931,2]
[382175025,1756532452012,959.65476722,0.00023931,2]
[382175026,1756532452048,959.65476722,0.00023931,2]
[382175027,1756532452089,959.65476722,0.00023931,2]
[382175028,1756532452134,959.65476722,0.00023931,2]
[382175029,1756532462284,223.78,0.00023923,10]
[382175030,1756532463147,300.0,0.00023932,2]
[382175031,1756532465753,1200.36193603,0.000239,2]
[382175032,1756532465780,2924.10862083,0.000239,2]
[382175033,1756532472677,186.49,0.00023923,10]
[382175034,1756532474249,4086.0,0.000239,2]
[382175035,1756532475209,583.20143385,0.00023931,2]
[382175036,1756532475371,583.20143385,0.00023931,2]
[382175037,1756532475489,583.20143385,0.00023931,2]
[382175038,1756532475525,583.20143385,0.00023931,2]
[382175039,1756532475558,470.60564377,0.00023931,2]
[382175040,1756532475586,112.59579008,0.00023931,2]
[382175041,1756532475620,583.20143385,0.00023931,2]
[382175042,1756532475651,583.20143385,0.00023931,2]
[382175043,1756532475682,583.20143385,0.00023931,2]
[382175044,1756532475717,583.20143385,0.00023931,2]
[382175045,1756532475748,500.0,0.00023931,2]
[382175046,1756532475783,583.20143385,0.00023931,2]
[382175047,1756532475815,500.0,0.00023931,2]
[382175048,1756532475850,583.20143385,0.00023931,2]
[382175049,1756532475880,500.0,0.00023931,2]
[382175050,1756532475914,583.20143385,0.00023931,2]
[382175051,1756532475949,583.20143385,0.00023931,2]
[382175052,1756532475982,500.0,0.00023931,2]
[382175053,1756532476017,583.20143385,0.00023931,2]
[382175054,1756532476046,500.0,0.00023931,2]
[382175055,1756532476075,583.20143385,0.00023931,2]
[382175056,1756532476105,583.20143385,0.00023931,2]
[382175057,1756532476134,650.0,0.00023931,2]
[382175058,1756532476219,322.19843757,0.00023931,2]
[382175059,1756532476247,261.00299628,0.00023931,2]
[382175060,1756532476339,583.20143385,0.00023931,2]
[382175061,1756532476380,583.20143385,0.00023931,2]
[382175062,1756532476418,583.20143385,0.00023931,2]
[382175063,1756532476450,583.20143385,0.00023931,2]
[382175064,1756532476481,583.20143385,0.00023931,2]
[382175065,1756532476513,583.20143385,0.00023931,2]
[382175066,1756532476544,583.20143385,0.00023931,2]
[382175067,1756532476590,583.20143385,0.00023931,2]
[382175068,1756532476625,583.20143385,0.00023931,2]
[382175069,1756532476658,583.20143385,0.00023931,2]
[382175070,1756532476692,583.20143385,0.00023931,2]
[382175071,1756532476723,583.20143385,0.00023931,2]
[382175072,1756532476761,583.20143385,0.00023931,2]
[382175073,1756532476803,583.20143385,0.00023931,2]
[382175074,1756532476832,583.20143385,0.00023931,2]
[382175075,1756532476866,583.20143385,0.00023931,2]
[382175076,1756532476900,407.78406212,0.00023931,2]
[382175077,1756532476927,175.41737173,0.00023931,2]
[382175078,1756532476972,583.20143385,0.00023931,2]
[382175079,1756532485677,155.41,0.00023923,10]
[382175080,1756532493059,500.0,0.00023931,2]
[382175081,1756532493099,500.0,0.00023931,2]
[382175082,1756532493136,500.0,0.00023931,2]
[382175083,1756532493178,500.0,0.00023931,2]
[382175084,1756532493215,500.0,0.00023931,2]
[382175085,1756532493247,500.0,0.00023931,2]
[382175086,1756532493293,500.0,0.00023931,2]
[382175087,1756532493332,500.0,0.00023931,2]
[382175088,1756532493372,500.0,0.00023931,2]
[382175089,1756532493417,500.0,0.00023931,2]
[382175090,1756532493493,500.0,0.00023931,2]
[382175091,1756532493531,500.0,0.00023931,2]
[382175092,1756532493574,500.0,0.00023931,2]
[382175093,1756532493612,500.0,0.00023931,2]
[382175094,1756532493649,456.42079069,0.00023931,2]
[382175095,1756532493687,500.0,0.00023931,2]
[382175096,1756532493725,500.0,0.00023931,2]
[382175097,1756532500663,629.56040373,0.00023923,10]
[382175098,1756532500688,147.48959627,0.00023923,10]
[382175099,1756532519650,1237.86437698,0.000239,2]
[382175100,1756532523072,300.0,0.00023932,2]
[382175101,1756532552810,500.0,0.00023932,2]
[382175102,1756532552912,166.76699166,0.00023932,2]
[382175103,1756532553626,228.25418781,0.00023932,2]
[382175104,1756532553660,500.0,0.00023932,2]
[382175105,1756532553696,500.0,0.00023932,2]
[382175106,1756532553733,500.0,0.00023932,2]
[382175107,1756532553768,500.0,0.00023932,2]
[382175108,1756532553801,500.0,0.00023932,2]
[382175109,1756532553846,500.0,0.00023932,2]
[382175110,1756532553879,500.0,0.00023932,2]
[382175111,1756532553912,500.0,0.00023932,2]
[382175112,1756532553944,500.0,0.00023932,2]
[382175113,1756532553982,500.0,0.00023932,2]
[382175114,1756532554015,500.0,0.00023932,2]
[382175115,1756532554050,500.0,0.00023932,2]
[382175116,1756532554093,500.0,0.00023932,2]
[382175117,1756532554141,500.0,0.00023932,2]
[382175118,1756532554175,419.63484728,0.00023932,2]
[382175119,1756532554204,85.41140707,0.00023932,2]
[382175120,1756532554245,500.0,0.00023932,2]
[382175121,1756532554285,500.0,0.00023932,2]
[382175122,1756532554325,500.0,0.00023932,2]
[382175123,1756532554359,500.0,0.00023932,2]
[382175124,1756532554392,500.0,0.00023932,2]
[382175125,1756532554438,608.44088692,0.00023932,2]
[382175126,1756532554476,500.0,0.00023932,2]
[382175127,1756532554510,500.0,0.00023932,2]
[382175129,1756532578115,226.160901,0.00013699,2]
[382175130,1756532578334,226.160901,0.00020187,2]
[382175131,1756532581538,313.79703604,0.000199,2]
[382175132,1756532583057,300.0,0.00023932,2]
[382175133,1756532586289,4740.03886797,0.00023493,2]
[382175134,1756532586315,5259.96113203,0.00023493,2]
[382175135,1756532614854,666.0,0.00023541,2]
[382175136,1756532643329,300.0,0.00023932,2]
[382175137,1756532702928,300.0,0.00023932,2]
[382175138,1756532704171,994.0,0.00023932,2]
[382175139,1756532716479,2480.04886797,0.000239,2]
[382175140,1756532716512,8538.55568911,0.000239,2]
[382175141,1756532762462,300.0,0.00023932,2]
[382175142,1756532762830,343.277106,0.000199,2]
[382175143,1756532807194,818.17720489,0.000239,2]
[382175144,1756532807222,2481.39924059,0.000239,2]
[382175145,1756532808310,1083.13132984,0.000239,2]
[382175146,1756532816288,5000.0,0.00031112,60]
[382175147,1756532824316,300.0,0.00023932,2]
[382175148,1756532862387,361.2,0.00023923,3]
[382175149,1756532873264,180.6,0.00023923,3]
[382175150,1756532882480,300.0,0.00023932,2]
[382175151,1756532883998,541.84,0.00023923,3]
[382175152,1756532905768,2185.37,0.00023933,2]
[382175153,1756532915009,303.63385818,0.0002393,2]
[382175154,1756532942513,300.0,0.00023932,2]
[382175155,1756532944138,297.5068252,0.000199,2]
[382175156,1756532986464,1665.32874619,0.000239,2]
[382175157,1756532986491,5680.40762519,0.000239,2]
[382175158,1756533003590,300.0,0.00023932,2]
[382175159,1756533003751,1200.0,0.00023932,2]
[382175204,1756533032087,-33319.27093662,0.00023933,2]
[382175206,1756533032100,-639.9710502,0.00023933,2]
[382175239,1756533037760,-301.77373254,0.00023933,2]
[382175245,1756533037873,-251083.80579282,0.00023933,2]
[382175246,1756533037883,-5708.74,0.00024,7]
[382175247,1756533037893,-48025.73,0.00024,7]
[382175248,1756533037902,-216.25802849,0.00024,7]
[382175249,1756533037912,-160.0,0.00024,7]
[382175250,1756533037921,-417.15472785,0.00024,7]
[382175251,1756533037930,-480.0,0.00024033,15]
[382175252,1756533037941,-160.0,0.00024033,2]
[382175253,1756533037950,-168.0,0.0002411,2]
[382175254,1756533037960,-323.7989615,0.00024322,2]
[382175255,1756533037970,-168.0,0.00024413,2]
[382175256,1756533037979,-20355.89753634,0.00024514,2]
[382175257,1756533037989,-600.0,0.00024514,20]
[382175258,1756533037998,-300.0,0.00024514,20]
[382175259,1756533038008,-300.0,0.00024514,20]
[382175260,1756533038018,-168.0,0.00024557,2]
[382175261,1756533038027,-500.0,0.00024614,2]
[382175262,1756533038036,-520.22474796,0.00024614,2]
[382175263,1756533038046,-500.0,0.00024614,2]
[382175264,1756533038055,-501.21865721,0.00024614,2]
[382175265,1756533038064,-503.92401456,0.00024614,2]
[382175266,1756533038074,-501.60924757,0.00024614,2]
[382175267,1756533038083,-501.74279141,0.00024614,2]
[382175268,1756533038093,-506.84425262,0.00024614,2]
[382175269,1756533038102,-500.0,0.00024636,2]
[382175270,1756533038111,-160.0,0.00024643,2]
[382175271,1756533038120,-845.75060209,0.00024643,2]
[382175272,1756533038129,-217.34977173,0.00024643,2]
[382175273,1756533038140,-232.73020027,0.00024643,2]
[382175274,1756533038149,-11361.55901651,0.00024644,2]
[382175275,1756533038158,-160.0,0.00024646,2]
[382175276,1756533038168,-425.65682239,0.00024646,2]
[382175277,1756533038177,-500.0,0.00024656,2]
[382175278,1756533038187,-502.82551765,0.00024656,2]
[382175279,1756533038196,-500.0,0.00024656,2]
[382175280,1756533038205,-501.31195499,0.00024656,2]
[382175281,1756533038216,-501.19331251,0.00024656,2]
[382175282,1756533038226,-500.0,0.00024656,2]
[382175283,1756533038235,-500.0,0.00024656,2]
[382175284,1756533038245,-168.0,0.00024775,2]
[382175285,1756533038255,-168.0,0.0002485,2]
[382175286,1756533038264,-1083.13132984,0.00024919,2]
[382175287,1756533038274,-168.0,0.00025085,2]
[382175288,1756533038283,-500.0,0.00025162,2]
[382175289,1756533038294,-549.61782895,0.00025204,2]
[382175290,1756533038304,-356.751259,0.00025204,2]
[382175291,1756533038313,-168.0,0.00025222,2]
[382175292,1756533038322,-722.4,0.00025293,3]
[382175293,1756533038331,-361.2,0.00025293,3]
[382175294,1756533038340,-327.42,0.00025431,10]
[382175295,1756533038350,-3299.57644545,0.00025434,2]
[382175296,1756533038359,-168.0,0.0002546,2]
[382175297,1756533038368,-500.0,0.00025475,2]
[382175298,1756533038378,-156.811,0.00025511,10]
[382175299,1756533038389,-342.73267993,0.00025559,2]
[382175300,1756533038399,-806.48707584,0.00025559,2]
[382175301,1756533038408,-1000.0,0.00025595,2]
[382175302,1756533038418,-1000.0,0.00025595,2]
[382175303,1756533038428,-1000.0,0.00025595,2]
[382175304,1756533038438,-1000.0,0.00025595,2]
[382175305,1756533038448,-1000.0,0.00025595,2]
[382175306,1756533038458,-1000.0,0.00025595,2]
[382175307,1756533038468,-2492.71625395,0.00025595,2]
[382175308,1756533038478,-1000.0,0.00025595,2]
[382175309,1756533038488,-1000.0,0.00025595,2]
[382175310,1756533038498,-752.19282963,0.00025595,2]
[382175311,1756533038507,-151.0,0.00025595,2]
[382175312,1756533038517,-151.0,0.00025595,2]
[382175313,1756533038526,-151.0,0.00025595,2]
[382175314,1756533038535,-151.0,0.00025595,2]
[382175315,1756533038545,-500.0,0.00025595,2]
[382175316,1756533038555,-151.0,0.00025595,2]
[382175317,1756533038565,-500.0,0.00025595,2]
[382175318,1756533038574,-151.0,0.00025595,2]
[382175319,1756533038583,-500.0,0.00025595,2]
[382175320,1756533038594,-151.0,0.00025595,2]
[382175321,1756533038604,-500.0,0.00025595,2]
[382175322,1756533038614,-151.0,0.00025595,2]
[382175323,1756533038623,-151.0,0.00025595,2]
[382175324,1756533038633,-500.0,0.00025595,2]
[382175325,1756533038642,-151.0,0.00025595,2]
[382175326,1756533038651,-151.0,0.00025595,2]
[382175327,1756533038661,-500.0,0.00025595,2]
[382175328,1756533038670,-151.0,0.00025595,2]
[382175329,1756533038680,-151.0,0.00025595,2]
[382175330,1756533038689,-500.0,0.00025595,2]
[382175331,1756533038699,-151.0,0.00025595,2]
[382175332,1756533038708,-151.0,0.00025595,2]
[382175333,1756533038717,-151.0,0.00025595,2]
[382175334,1756533038727,-500.0,0.00025595,2]
[382175335,1756533038736,-151.0,0.00025595,2]
[382175336,1756533038746,-500.0,0.00025595,2]
[382175337,1756533038755,-151.0,0.00025595,2]
[382175338,1756533038765,-500.0,0.00025595,2]
[382175339,1756533038774,-155.93028656,0.00025595,2]
[382175340,1756533038783,-151.0,0.00025595,2]
[382175341,1756533038793,-151.0,0.00025595,2]
[382175342,1756533038802,-151.0,0.00025595,2]
[382175343,1756533038812,-151.0,0.00025595,2]
[382175344,1756533038821,-500.0,0.00025595,2]
[382175345,1756533038831,-153.21929658,0.00025595,2]
[382175346,1756533038840,-500.0,0.00025595,2]
[382175347,1756533038850,-500.0,0.00025595,2]
[382175348,1756533038861,-160.0,0.00025597,2]
[382175349,1756533038871,-168.0,0.00025746,2]
[382175350,1756533038880,-153.0,0.00025784,2]
[382175351,1756533038891,-153.0,0.00025784,2]
[382175352,1756533038900,-153.0,0.00025784,2]
[382175353,1756533038910,-153.0,0.00025784,2]
[382175354,1756533038919,-1083.13132984,0.00025939,2]
[382175355,1756533038929,-420.0,0.00025955,2]
[382175356,1756533038938,-160.0,0.00026014,3]
[382175357,1756533038948,-267.8177275,0.00026145,2]
[382175358,1756533038957,-160.0,0.00026571,4]
[382175359,1756533038967,-4261.0,0.00026574,5]
[382175360,1756533038977,-5708.74,0.000266,7]
[382175361,1756533038987,-1002.08444901,0.00026674,2]
[382175362,1756533038997,-226.160901,0.00026676,2]
[382175363,1756533039007,-48025.73,0.000267,7]
[382175364,1756533039017,-1369.55978899,0.00026794,2]
[382175365,1756533039027,-3222.72235507,0.00026794,2]
[382175366,1756533039037,-1083.13132984,0.00026958,2]
[382175367,1756533039047,-720.0,0.00026965,20]
[382175368,1756533039057,-3299.57644545,0.00026968,2]
[382175369,1756533039067,-297.5068252,0.00027098,7]
[382175370,1756533039076,-160.0,0.00027129,5]
[382175371,1756533039086,-7345.73637137,0.00027457,2]
[382175372,1756533039095,-160.0,0.00027687,6]
[382175373,1756533039105,-1083.13132984,0.00027977,2]
[382175374,1756533039114,-1000.0,0.00028082,7]
[382175375,1756533039124,-5385.95,0.000281,7]
[382175376,1756533039134,-587.0,0.00028149,2]
[382175377,1756533039143,-160.0,0.00028244,7]
[382175378,1756533039153,-156.21,0.00028374,15]
[382175379,1756533039163,-156.21,0.00028474,15]
[382175380,1756533039173,-3299.57644545,0.00028502,2]
[382175381,1756533039183,-156.21,0.00028574,15]
[382175382,1756533039192,-156.21,0.00028674,15]
[382175383,1756533039202,-156.21,0.00028774,15]
[382175384,1756533039212,-152.13807225,0.00028783,2]
[382175385,1756533039225,-151.0,0.00028783,2]
[382175386,1756533039235,-152.02166784,0.00028783,2]
[382175387,1756533039245,-151.0,0.00028783,2]
[382175388,1756533039254,-151.48684361,0.00028783,2]
[382175389,1756533039266,-241.85192776,0.00028783,2]
[382175390,1756533039275,-151.37198271,0.00028783,2]
[382175391,1756533039284,-151.77123579,0.00028783,2]
[382175393,1756533039295,-154.25006985,0.00028783,2]
[382175395,1756533039305,-151.0,0.00028783,2]
[382175397,1756533039315,-151.0,0.00028783,2]
[382175399,1756533039324,-154.06718767,0.00028783,2]
[382175400,1756533039333,-151.0,0.00028783,2]
[382175401,1756533039343,-152.22796554,0.00028783,2]
[382175402,1756533039352,-157.30439683,0.00028783,2]
[382175403,1756533039362,-160.0,0.00028802,8]
[382175406,1756533039371,-156.21,0.00028874,15]
[382175407,1756533039381,-5708.74,0.000289,7]
[382175408,1756533039390,-1000.0,0.00028904,7]
[382175409,1756533039399,-156.21113127,0.00028974,15]
[382175410,1756533039409,-1083.13132984,0.00028996,2]
[382175411,1756533039418,-48025.73,0.00029,7]
[382175412,1756533039427,-151.0,0.00029057,2]
[382175413,1756533039436,-151.0,0.00029057,2]
[382175414,1756533039446,-151.0,0.00029057,2]
[382175415,1756533039455,-179.74479563,0.00029057,2]
[382175416,1756533039464,-151.0,0.00029331,2]
[382175417,1756533039475,-160.0,0.0002936,9]
[382175418,1756533039484,-199.0,0.00029489,120]
[382175419,1756533039493,-724.90404,0.00029589,120]
[382175420,1756533039503,-151.0,0.00029605,2]
[382175421,1756533039513,-864.0,0.00029662,20]
[382175422,1756533039523,-502.20116784,0.00029674,5]
[382175423,1756533039532,-277.88176164,0.00029674,5]
[382175424,1756533039541,-1000.0,0.00029726,7]
[382175425,1756533039550,-500.0,0.00029779,2]
[382175426,1756533039561,-1000.0,0.000298,120]
[382175427,1756533039571,-151.0,0.00029879,2]
[382175428,1756533039581,-160.0,0.00029918,10]
[382175429,1756533039592,-1503.393798,0.0003,2]
[382175430,1756533039603,-1083.13132984,0.00030016,2]
[382175431,1756533039613,-3299.57644545,0.00030036,2]
[382175432,1756533039624,-500.0,0.0003013,5]
[382175433,1756533039633,-500.0,0.0003013,5]
[382175434,1756533039643,-500.0,0.0003013,5]
[382175435,1756533039652,-522.2640819,0.0003013,5]
[382175436,1756533039661,-2000.0,0.00030136,30]
[382175437,1756533039671,-2000.0,0.00030136,30]
[382175438,1756533039681,-2000.0,0.00030136,30]
[382175439,1756533039690,-2000.0,0.00030136,30]
[382175440,1756533039700,-2000.0,0.00030136,30]
[382175441,1756533039901,-2000.0,0.00030136,30]
[382175442,1756533039911,-2000.0,0.00030136,30]
[382175443,1756533039920,-2000.0,0.00030136,30]
[382175444,1756533039930,-2000.0,0.00030136,30]
[382175445,1756533039939,-2000.0,0.00030136,30]
[382175446,1756533039949,-2000.0,0.00030136,30]
[382175447,1756533039958,-2000.0,0.00030136,30]
[382175448,1756533039968,-2000.0,0.00030136,30]
[382175449,1756533039977,-2000.0,0.00030136,30]
[382175450,1756533039987,-2000.0,0.00030136,30]
[382175451,1756533039997,-2000.0,0.00030136,30]
[382175452,1756533040006,-2000.0,0.00030136,30]
[382175453,1756533040015,-2000.0,0.00030136,30]
[382175454,1756533040024,-2061.57681629,0.00030136,30]
[382175455,1756533040034,-216.25802849,0.0003014,30]
[382175456,1756533040044,-245.0,0.00030153,2]
[382175457,1756533040053,-160.0,0.00030475,11]
[382175458,1756533040063,-502.93674094,0.000305,5]
[382175459,1756533040072,-823.0,0.00030528,2]
[382175460,1756533040082,-1000.0,0.00030548,7]
[382175462,1756533040091,-500.0,0.00030832,7]
[382175464,1756533040101,-804.85090426,0.00030958,26]
[382175465,1756533040110,-7166.9349978,0.00030975,2]
[382175467,1756533040120,-25110.5194536,0.00030975,2]
[382175468,1756533040130,-1000.0,0.00031,10]
[382175469,1756533040140,-1000.0,0.00031013,2]
[382175470,1756533040150,-7462.49117589,0.00031014,2]
[382175471,1756533040159,-7345.73637137,0.00031014,2]
[382175472,1756533040169,-160.0,0.00031033,12]
[382175473,1756533040179,-170.84409111,0.00031033,5]
[382175474,1756533040188,-1083.13132984,0.00031035,2]
[382175475,1756533040198,-1042.06391523,0.00031036,2]
[382175476,1756533040208,-151.0,0.00031112,7]
[382175477,1756533040218,-151.0,0.00031112,7]
[382175478,1756533040228,-151.0,0.00031112,7]
[382175479,1756533040243,-151.0,0.00031112,7]
[382175480,1756533040254,-151.0,0.00031112,7]
[382175481,1756533040264,-151.0,0.00031112,7]
[382175482,1756533040275,-151.0,0.00031112,7]
[382175483,1756533040284,-624.06181762,0.00031114,2]
[382175484,1756533040294,-907.50463492,0.00031114,5]
[382175485,1756533040303,-238609.3864048,0.00031114,20]
[382175502,1756533040562,-439.626,0.00031114,20]
[382175504,1756533040573,-5999.993325,0.00031114,20]
[382178291,1756533126805,-220.0,0.00018125,26]
[382178292,1756533126844,-218.1716718,0.000199,2]
[382178293,1756533151888,241.91133501,0.00023832,2]
[382178294,1756533151921,260.67071404,0.00023832,2]
[382178295,1756533151953,432.9926616,0.00023832,2]
[382178296,1756533151988,500.0,0.00023832,2]
[382178297,1756533152139,400.93787632,0.00023832,2]
[382178298,1756533160112,180.6,0.00023823,3]
[382178299,1756533171023,541.8,0.00023823,3]
[382178300,1756533183246,300.0,0.00023832,2]
[382178301,1756533205145,168.0,0.00023787,2]
[382178302,1756533228605,947.73991361,0.000238,2]
[382178303,1756533242324,1501.0,0.00023833,2]
[382178304,1756533242493,300.0,0.00023832,2]
[382178305,1756533246656,3348.01415582,0.000238,2]
[382178306,1756533246682,1549.1434251,0.000238,2]
[382178307,1756533246944,-160.0,0.00023833,2]
[382178308,1756533247371,-7809.2981296,0.00023833,2]
[382178309,1756533247398,-10000.01,0.00023833,2]
[382178310,1756533247443,-10000.01,0.00023833,2]
[382178311,1756533247498,-10000.01,0.00023833,2]
[382178312,1756533247631,-10000.01,0.00023833,2]
[382178313,1756533247769,-10000.01,0.00023833,2]
[382178314,1756533248008,-10000.01,0.00023833,2]
[382178315,1756533248107,-10000.01,0.00023833,2]
[382178316,1756533256949,-389.44958382,0.00023832,2]
[382178317,1756533261051,531.02864774,0.00023832,2]
[382178318,1756533280098,228.74969224,0.000199,2]
[382178319,1756533302916,300.0,0.00023832,2]
[382178320,1756533348262,442.278918,0.00023296,2]
[382178321,1756533363109,300.0,0.00023832,2]
[382178322,1756533422649,300.0,0.00023832,2]
[382178323,1756533447676,396.49946656,0.000199,2]
[382178324,1756533457690,361.2,0.00023823,3]
[382178325,1756533461202,829.27242447,0.000238,2]
[382178326,1756533461850,2639.66115636,0.000238,2]
[382178328,1756533482182,178.08542347,0.00023833,2]
[382178329,1756533483664,300.0,0.00023832,2]
[382178330,1756533516958,2414.33510352,0.000238,2]
[382178331,1756533516983,850.4366171,0.000238,2]
[382178332,1756533517696,203.544811,0.00013699,2]
[382178333,1756533518109,203.544811,0.00020187,2]
[382178335,1756533543048,300.0,0.00023832,2]
[382178336,1756533602105,8442.4837609,0.00023296,2]
[382178337,1756533602335,1557.5162391,0.00023296,2]
[382178338,1756533603033,300.0,0.00023832,2]
[382178339,1756533613703,804.85090426,0.00023713,12]
[382178340,1756533616873,290.76627552,0.000199,2]
[382178341,1756533617656,-7825.77574876,0.00023833,2]
[382178342,1756533617705,-10000.01,0.00023833,2]
[382178343,1756533617809,-10000.01,0.00023833,2]
[382178344,1756533617950,-10000.01,0.00023833,2]
[382178345,1756533618103,-10000.01,0.00023833,2]
[382178346,1756533618224,-10000.01,0.00023833,2]
[382178347,1756533618383,-10000.01,0.00023833,2]
[382178348,1756533641831,500.0,0.00023832,2]
[382178349,1756533641909,423.84949313,0.00023832,2]
[382178350,1756533641943,169.2644917,0.00023832,2]
[382178351,1756533641993,500.0,0.00023832,2]
[382178352,1756533642023,313.00086038,0.00023832,2]
[382178353,1756533642054,192.50148257,0.00023832,2]
[382178354,1756533642087,500.0,0.00023832,2]
[382178355,1756533642118,253.61576423,0.00023832,2]
[382178356,1756533642152,500.0,0.00023832,2]
[382178357,1756533642186,500.0,0.00023832,2]
[382178358,1756533642220,500.0,0.00023832,2]
[382178359,1756533642249,479.24376624,0.00023832,2]
[382178360,1756533642290,500.0,0.00023832,2]
[382178361,1756533642329,500.0,0.00023832,2]
[382178362,1756533642361,500.0,0.00023832,2]
[382178363,1756533642393,500.0,0.00023832,2]
[382178364,1756533642427,500.0,0.00023832,2]
[382178365,1756533642474,500.0,0.00023832,2]
[382178366,1756533642519,500.0,0.00023832,2]
[382178367,1756533642553,342.34404483,0.00023832,2]
[382178368,1756533642588,500.0,0.00023832,2]
[382178369,1756533642623,500.0,0.00023832,2]
[382178370,1756533642675,326.19009692,0.00023832,2]
[382178371,1756533642704,173.80990308,0.00023832,2]
[382178372,1756533642736,500.0,0.00023832,2]
[382178373,1756533642773,154.14583014,0.00023832,2]
[382178374,1756533642814,500.0,0.00023832,2]
[382178375,1756533642851,500.0,0.00023832,2]
[382178376,1756533642883,500.0,0.00023832,2]
[382178377,1756533642936,500.0,0.00023832,2]
[382178378,1756533642970,500.0,0.00023832,2]
[382178379,1756533643012,500.0,0.00023832,2]
[382178380,1756533643068,500.0,0.00023832,2]
[382178381,1756533649282,228.0,0.00023616,2]
[382178382,1756533650881,293.30063552,0.00023832,2]
[382178383,1756533650972,462.33437622,0.00023832,2]
[382178384,1756533653265,500.0,0.00023832,2]
[382178385,1756533653304,229.59292966,0.00023832,2]
[382178386,1756533653340,325.71950371,0.00023832,2]
[382178387,1756533653388,158.05502448,0.00023832,2]
[382178388,1756533654270,453.02892374,0.00023832,2]
[382178389,1756533654314,190.35860425,0.00023832,2]
[382178390,1756533661764,228.0,0.00023828,2]
[382178391,1756533663752,300.0,0.00023832,2]
[382178392,1756533675166,1042.08332985,0.00023832,2]
[382178393,1756533700306,725.61337135,0.00023799,2]